bitfinex/quotes_ETHUSD_20241105
["timestamp","ask_amount","ask_price","bid_price","bid_amount"]
[1730776835243,8.29139,2412.2,2411.8,1.18600661]
[1730776835437,0.10703712,2411.9,2411.8,1.18600661]
[1730776835674,4.14577,2412.1,2411.8,1.48010546]
[1730776835832,0.10703712,2411.9,2411.8,1.18600661]
[1730776836034,4.14577,2412.1,2411.8,1.48011861]
[1730776836245,0.10615722,2411.9,2411.8,1.18600661]
[1730776836477,4.14577,2412.1,2411.8,1.18600661]
[1730776836952,0.10615722,2412.0,2411.8,1.18600661]
[1730776837280,4.25210722,2412.0,2411.8,1.18600661]
[1730776837684,4.1461,2411.9,2411.8,0.38740661]
[1730776837842,4.1461,2411.9,2411.7,0.0598132]
[1730776838348,0.10615722,2411.8,2411.7,0.0598132]
[1730776839046,4.14595,2412.0,2411.7,0.0598132]
[1730776839243,0.10615722,2411.9,2411.7,0.0598132]
[1730776846193,4.25226722,2411.9,2411.7,0.0598132]
[1730776846691,0.10615722,2411.9,2411.7,0.0598132]
[1730776849970,0.10615722,2411.9,2411.8,2.48821486]
[1730776850174,0.10615722,2411.9,2411.8,2.78264123]
[1730776850456,4.14577,2412.1,2411.8,2.78264123]
[1730776850662,4.14577,2412.1,2411.8,2.48821486]
[1730776850663,0.10615722,2412.0,2411.8,2.48821486]
[1730776851580,4.14542,2412.3,2411.9,0.29469799]
[1730776851783,0.10594762,2411.9,2411.8,6.63436486]
[1730776851984,4.14542,2412.3,2411.8,6.92906625]
[1730776852162,4.14542,2412.3,2411.9,0.29470139]
[1730776852493,4.14542,2412.3,2411.8,6.63436486]
[1730776852686,4.14542,2412.3,2411.9,4.44090831]
[1730776852883,4.14542,2412.3,2411.9,4.1461]
[1730776853213,4.14542,2412.3,2412.0,0.29496378]
[1730776853517,4.14542,2412.3,2411.8,6.63436486]
[1730776853721,4.14542,2412.3,2411.9,0.29495098]
[1730776853925,4.14542,2412.3,2412.0,0.29495098]
[1730776854216,4.14542,2412.3,2411.8,6.63436486]
[1730776854513,4.14542,2412.3,2411.9,0.76746373]
[1730776854729,4.14542,2412.3,2412.0,0.29517408]
[1730776854906,4.14542,2412.3,2412.1,0.29517408]
[1730776855214,4.14561,2412.2,2411.8,2.48821486]
[1730776855401,4.14561,2412.2,2411.9,0.76836562]
[1730776855607,4.14561,2412.2,2412.0,0.76836562]
[1730776855815,4.14561,2412.2,2412.1,0.29552095]
[1730776857707,4.14536,2412.4,2412.1,0.29552095]
[1730776857919,4.14543,2412.3,2412.2,0.29552095]
[1730776858420,4.14536,2412.4,2412.2,0.29552095]
[1730776858627,4.14536,2412.4,2412.3,0.29552095]
[1730776859482,5.5170612,2412.4,2412.3,0.29552095]
[1730776861036,5.5170612,2412.4,2412.3,0.29568013]
[1730776861629,1.3717012,2412.4,2411.9,0.59136745]
[1730776861832,4.14585,2412.1,2412.0,0.7687941]
[1730776863394,4.14561,2412.2,2412.0,0.7687941]
[1730776863597,8.29136,2412.2,2412.1,0.29568575]
[1730776863793,8.29136,2412.2,2411.8,2.48821486]
[1730776864021,8.29136,2412.2,2411.9,0.7688416]
[1730776864236,8.29136,2412.2,2411.8,2.48821486]
[1730776864450,4.14576,2412.1,2411.9,0.76885154]
[1730776864614,4.14576,2412.1,2412.0,0.76897078]
[1730776866006,0.10609435,2412.1,2412.0,0.76897078]
[1730776866209,0.10609435,2412.1,2412.0,2.50408564]
[1730776866401,4.14539,2412.4,2412.0,3.89438064]
[1730776866601,0.10609435,2412.1,2412.0,2.53401486]
[1730776866903,0.10609435,2412.1,2412.0,3.89409203]
[1730776867129,4.14539,2412.4,2412.0,3.89409203]
[1730776867336,8.29072,2412.4,2412.1,0.76872837]
[1730776867637,8.29072,2412.4,2412.2,0.76866909]
[1730776867941,4.14533,2412.4,2412.3,0.29563767]
[1730776869422,5.5170262,2412.4,2412.3,0.29563767]
[1730776870743,4.14593,2412.0,2411.7,0.0598132]
[1730776871057,8.29199,2412.0,2411.8,1.36002616]
[1730776871210,8.29199,2412.0,2411.9,0.76869954]
[1730776871414,4.14593,2412.0,2411.9,0.76869954]
[1730776871712,4.14593,2412.0,2411.9,0.76868989]
[1730776872806,8.29143,2412.2,2411.9,0.76868989]
[1730776873004,8.29143,2412.2,2412.0,0.76868989]
[1730776873315,8.29143,2412.2,2412.1,0.29564567]
[1730776874056,4.1457,2412.2,2412.1,0.29564567]
[1730776875038,4.1457,2412.2,2412.1,0.76875856]
[1730776878221,4.1457,2412.2,2411.9,0.8167]
[1730776878421,4.14577,2412.1,2412.0,1.36065614]
[1730776878651,5.860037,2412.1,2412.0,0.76905036]
[1730776878859,5.860037,2412.1,2412.0,0.29578431]
[1730776880846,5.96535605,2412.1,2412.0,0.29578431]
[1730776881751,4.14604,2412.0,2411.7,0.0598132]
[1730776882152,4.14604,2412.0,2411.8,0.76882929]
[1730776882619,0.10531905,2411.9,2411.8,0.76882929]
[1730776882823,0.10531905,2411.9,2411.8,0.29569993]
[1730776883420,0.10531905,2411.9,2411.8,0.76882035]
[1730776883826,4.94887,2412.1,2411.8,0.76882035]
[1730776884164,9.09476,2412.1,2411.9,0.76882035]
[1730776884377,4.14577,2412.1,2412.0,0.29569585]
[1730776886251,5.050276,2412.1,2412.0,0.29569585]
[1730776886453,4.14603,2412.0,2411.7,0.0598132]
[1730776886664,4.14603,2412.0,2411.8,0.76862759]
[1730776886973,4.14603,2412.0,2411.9,0.29562063]
[1730776887304,4.90953,2412.0,2411.9,0.29562063]
[1730776887578,5.81506,2412.0,2411.9,0.29562063]
[1730776890078,4.14614,2411.9,2411.7,0.0598132]
[1730776890260,4.14614,2411.9,2411.8,0.76868244]
[1730776890470,4.90953,2412.0,2411.8,0.76868244]
[1730776890760,4.90953,2412.0,2411.9,0.29564281]
[1730776890964,4.14542,2412.3,2411.9,5.72797752]
[1730776891190,4.14542,2412.3,2412.0,0.7685525]
[1730776891388,4.14542,2412.3,2412.1,0.29564281]
[1730776891563,4.14542,2412.3,2412.2,0.29564281]
[1730776893177,4.14522,2412.5,2412.2,0.29564281]
[1730776893378,4.14522,2412.5,2412.3,0.29564281]
[1730776893573,4.14522,2412.5,2412.2,0.8133]
[1730776893792,4.14522,2412.5,2412.3,0.29567182]
[1730776893970,7.14496,2412.6,2412.2,0.8133]
[1730776894178,4.14525,2412.4,2412.3,0.29567202]
[1730776895771,4.24687321,2412.4,2412.3,0.29567202]
[1730776895970,4.24687321,2412.4,2412.2,0.8133]
[1730776897108,4.24687321,2412.4,2412.3,0.29566651]
[1730776897409,4.24687321,2412.4,2412.3,0.29565662]
[1730776899096,4.24687321,2412.4,2412.3,0.29565284]
[1730776901722,4.24687321,2412.4,2412.3,0.2956071]
[1730776906487,0.10162321,2412.4,2412.3,0.2956071]
[1730776907779,0.10162321,2412.4,2412.3,0.76841887]
[1730776907983,4.14491,2412.6,2412.3,0.76841887]
[1730776908204,4.14491,2412.6,2412.4,0.2956071]
[1730776908422,4.14491,2412.6,2412.2,2.54841486]
[1730776908423,0.10208496,2412.5,2412.2,2.54841486]
[1730776908720,0.10208496,2412.5,2412.3,0.76820279]
[1730776909018,0.10208496,2412.5,2412.4,0.29545833]
[1730776909224,0.10208496,2412.5,2412.4,0.29544632]
[1730776909422,0.10208496,2412.5,2412.2,2.54841486]
[1730776909585,0.10208496,2412.5,2412.4,0.29541648]
[1730776913136,0.10208496,2412.5,2412.4,0.29538244]
[1730776914115,4.14492,2412.6,2412.4,0.29538244]
[1730776914317,8.28967,2412.7,2412.5,0.29538244]
[1730776914638,8.28967,2412.7,2412.2,6.69394486]
[1730776914945,4.14492,2412.6,2412.3,0.76799229]
[1730776915095,4.14492,2412.6,2412.4,0.29537737]
[1730776915299,4.14492,2412.6,2412.5,0.29537737]
[1730776915847,8.28968,2412.7,2412.5,0.29537737]
[1730776916138,4.14483,2412.7,2412.2,6.69394486]
[1730776916438,4.14483,2412.7,2412.3,4.91349265]
[1730776916624,3.0,2412.8,2412.4,0.29542366]
[1730776916825,7.14458,2412.8,2412.5,0.29542366]
[1730776917046,4.92389,2412.9,2412.5,0.7634]
[1730776917212,8.28898,2412.9,2412.6,0.29540293]
[1730776917411,8.28898,2412.9,2412.5,0.7634]
[1730776917611,4.14427,2413.0,2412.6,6.17543287]
[1730776917843,4.14407,2413.1,2412.8,1.73511486]
[1730776917999,4.14391,2413.2,2412.8,1.73511486]
[1730776918521,8.28794,2413.2,2412.9,0.2953576]
[1730776918725,8.28794,2413.2,2412.8,1.73511486]
[1730776918915,8.28794,2413.2,2412.9,0.29534748]
[1730776919238,8.28794,2413.2,2412.8,1.73511486]
[1730776919439,8.28794,2413.2,2412.9,0.29530822]
[1730776919637,4.14406,2413.1,2412.8,1.73511486]
[1730776919853,4.14406,2413.1,2412.9,0.29531154]
[1730776920051,8.28785,2413.2,2412.8,1.73511486]
[1730776920227,8.28785,2413.2,2412.9,0.29530843]
[1730776920228,4.14412,2413.1,2412.9,0.29530843]
[1730776920402,8.28786,2413.2,2412.8,1.73511486]
[1730776920606,8.28786,2413.2,2412.9,0.29539041]
[1730776920842,8.28786,2413.2,2412.8,1.73511486]
[1730776921359,4.14408,2413.1,2412.8,1.73511486]
[1730776922238,4.14408,2413.1,2412.9,0.29541243]
[1730776922426,4.14408,2413.1,2412.7,0.7863]
[1730776922750,4.14408,2413.1,2412.8,0.76810457]
[1730776922946,4.14408,2413.1,2412.9,0.29542055]
[1730776923269,4.14408,2413.1,2412.7,0.7863]
[1730776923439,4.14408,2413.1,2412.8,0.29533704]
[1730776923625,4.14408,2413.1,2412.9,0.29533704]
[1730776923968,4.14408,2413.1,2412.4,6.69715486]
[1730776923969,4.95098,2412.9,2412.4,6.69715486]
[1730776924271,4.95098,2412.9,2412.5,0.76793631]
[1730776924424,4.95098,2412.9,2412.6,0.29535584]
[1730776924623,4.95098,2412.9,2412.7,0.29535584]
[1730776924831,4.97428,2413.1,2412.6,1.73511486]
[1730776925050,0.8301,2413.1,2412.7,1.09283301]
[1730776925384,0.7946,2413.5,2413.0,1.73511486]
[1730776925526,11.47304,2413.7,2413.4,1.73511486]
[1730776925527,0.7946,2413.7,2413.4,1.73511486]
[1730776925724,0.7946,2413.7,2413.2,4.14381]
[1730776925725,4.14327,2413.6,2413.2,1.73511486]
[1730776925962,4.14355,2413.4,2413.3,0.2952088]
[1730776926124,4.14355,2413.4,2413.2,1.73511486]
[1730776926326,8.28717,2413.4,2413.2,1.73511486]
[1730776926527,0.10298721,2413.3,2413.2,1.73511486]
[1730776926969,4.14336,2413.5,2413.2,0.29508218]
[1730776927177,4.14439,2412.9,2412.6,2.32532598]
[1730776927469,0.10298721,2412.8,2412.7,0.29506464]
[1730776928274,7.93428,2413.2,2412.7,5.66993568]
[1730776928565,7.93428,2413.2,2412.8,6.1747295]
[1730776928566,0.10298721,2413.1,2412.8,6.1747295]
[1730776928776,0.10298721,2413.1,2412.9,0.29506464]
[1730776928975,0.10298721,2413.1,2412.8,5.87966486]
[1730776929275,8.28766,2413.3,2412.9,0.2953666]
[1730776929431,8.28766,2413.3,2412.8,5.87966486]
[1730776929629,0.10348018,2413.2,2412.9,0.29533494]
[1730776929890,0.10348018,2413.2,2413.0,1.73511486]
[1730776930080,0.10348018,2413.1,2413.0,5.87924486]
[1730776930244,12.28694,2413.7,2413.0,5.87924486]
[1730776930245,4.14321,2413.6,2413.1,4.92701]
[1730776930428,0.10348018,2413.5,2413.2,2.03044385]
[1730776930772,0.10348018,2413.5,2413.2,1.73511486]
[1730776931170,0.10348018,2413.5,2413.3,0.29522476]
[1730776931346,0.10348018,2413.5,2413.2,1.73511486]
[1730776932904,4.14256,2414.0,2413.5,4.14326]
[1730776933116,4.14256,2414.0,2413.6,1.73511486]
[1730776933604,8.28515,2414.0,2413.6,1.73511486]
[1730776933818,4.14256,2414.0,2413.6,1.73511486]
[1730776933974,4.14275,2413.9,2413.6,1.73511486]
[1730776934167,4.632076,2414.0,2413.6,1.73511486]
[1730776934168,4.14256,2414.0,2413.6,1.73511486]
[1730776934597,0.7526,2414.1,2413.7,0.8319]
[1730776935668,4.89494,2414.1,2413.7,0.8319]
[1730776936361,3.0,2414.4,2413.7,0.8319]
[1730776936362,7.89373,2414.4,2413.7,4.97489]
[1730776936614,4.14235,2414.1,2413.7,4.97489]
[1730776936911,4.14235,2414.1,2413.7,0.8319]
[1730776938069,4.970811,2414.1,2413.5,4.14325]
[1730776938303,4.14269,2413.9,2413.4,4.14352]
[1730776939312,4.14295,2413.8,2413.3,8.95636232]
[1730776939614,4.14304,2413.7,2413.4,0.29451479]
[1730776939771,4.14284,2413.9,2413.3,4.93479]
[1730776939980,4.14278,2413.9,2413.3,9.07838]
[1730776940183,4.14278,2413.9,2413.4,4.4378564]
[1730776940407,4.14278,2413.9,2413.4,4.14344]
[1730776940883,0.10420355,2413.8,2413.4,4.14344]
[1730776941493,0.10420355,2413.8,2413.3,4.93469]
[1730776941701,4.24706355,2413.8,2413.4,0.29438206]
[1730776941992,4.24706355,2413.8,2413.3,0.7911]
[1730776941993,4.14325,2413.6,2413.3,0.7911]
[1730776942638,0.10420355,2413.5,2413.3,0.7911]
[1730776943138,0.10420355,2413.4,2413.3,4.93477]
[1730776943347,0.10420355,2413.4,2413.3,5.22929872]
[1730776943628,4.14284,2413.8,2413.3,0.7911]
[1730776943837,0.10420355,2413.4,2413.3,4.93472]
[1730776944050,4.14301,2413.7,2413.3,4.93472]
[1730776944195,0.10420355,2413.4,2413.3,4.93472]
[1730776944401,0.7608,2414.0,2413.3,1.08573946]
[1730776944402,4.14334,2413.6,2413.3,1.08573946]
[1730776944740,5.322174,2413.6,2413.3,0.29463946]
[1730776944951,4.24764355,2413.5,2413.3,0.29463946]
[1730776945851,4.24764355,2413.5,2413.2,4.14379]
[1730776945852,0.10420355,2413.5,2413.2,4.14379]
[1730776946144,0.10420355,2413.5,2413.3,4.14362]
[1730776946498,4.14286,2413.8,2413.3,4.14362]
[1730776946743,0.10420355,2413.7,2413.3,4.14362]
[1730776947247,4.14313,2413.7,2413.2,4.14385]
[1730776947431,0.10420355,2413.6,2413.2,4.14385]
[1730776948707,0.10420355,2413.6,2413.2,8.28764]
[1730776949168,0.10420355,2413.6,2413.2,4.14375]
[1730776949307,0.10420355,2413.6,2413.3,4.14368]
[1730776949836,0.10420355,2413.6,2413.2,4.14375]
[1730776950156,0.10420355,2413.6,2413.3,0.29497223]
[1730776950315,4.24739355,2413.6,2413.2,4.14375]
[1730776950645,4.24739355,2413.6,2413.3,0.2950047]
[1730776950941,4.14355,2413.4,2413.1,0.7789]
[1730776951126,4.14355,2413.4,2413.2,0.29503492]
[1730776951343,0.10464398,2413.3,2413.0,4.14413]
[1730776951510,0.10464398,2413.3,2413.1,0.76716379]
[1730776951857,0.10464398,2413.3,2413.0,4.14413]
[1730776952015,0.10464398,2413.3,2413.1,0.29511294]
[1730776952217,0.10464398,2413.3,2413.0,4.14413]
[1730776952417,0.10464398,2413.3,2413.1,0.29511995]
[1730776952718,0.10464398,2413.3,2413.0,4.14413]
[1730776952961,0.10464398,2413.3,2413.1,0.29512026]
[1730776953137,5.01694398,2413.3,2413.2,0.29512026]
[1730776953341,5.93299338,2413.3,2412.9,0.47226263]
[1730776953579,5.9271161,2413.3,2412.8,4.14447]
[1730776953861,5.0110667,2413.3,2412.9,0.76759529]
[1730776954019,5.0110667,2413.3,2413.0,0.29522433]
[1730776954218,5.0110667,2413.3,2412.8,4.14447]
[1730776954219,5.0110667,2413.3,2413.1,0.29522433]
[1730776954415,0.8673667,2413.3,2412.7,8.99316232]
[1730776954669,0.8673667,2413.3,2412.8,4.91220476]
[1730776954837,0.8673667,2413.3,2412.9,0.76776476]
[1730776955021,0.8673667,2413.3,2413.0,0.29528988]
[1730776955229,0.8673667,2413.3,2413.1,0.29528988]
[1730776955452,0.8673667,2413.3,2412.8,4.73515267]
[1730776955757,5.0110867,2413.3,2412.9,0.7678978]
[1730776955925,5.0110867,2413.3,2413.0,0.29534105]
[1730776956131,5.0110867,2413.3,2413.1,0.29534105]
[1730776956347,5.0110867,2413.3,2412.9,4.14437]
[1730776956656,5.0110867,2413.3,2413.0,0.295306]
[1730776956960,5.0110867,2413.3,2413.1,0.295306]
[1730776957172,5.0110867,2413.3,2412.9,4.14437]
[1730776957348,5.0110867,2413.3,2413.0,2.02862857]
[1730776957529,5.0110867,2413.3,2413.1,0.29535754]
[1730776957732,5.0110867,2413.3,2413.0,1.73327103]
[1730776957938,9.1549067,2413.3,2413.1,0.29536239]
[1730776958260,5.0110867,2413.3,2412.8,5.87782103]
[1730776958433,5.0110867,2413.3,2412.9,0.76807586]
[1730776958753,5.0110867,2413.3,2413.0,0.29540814]
[1730776958945,5.0110867,2413.3,2413.1,0.29540814]
[1730776959144,5.0110867,2413.3,2412.8,5.87782103]
[1730776959348,5.0110867,2413.3,2412.9,0.76815557]
[1730776959545,5.0110867,2413.3,2413.0,0.29544019]
[1730776959735,5.0110867,2413.3,2413.1,0.29544019]
[1730776959936,5.0110867,2413.3,2412.8,5.87782103]
[1730776960260,5.0110867,2413.3,2412.9,0.76816474]
[1730776960436,9.1549167,2413.3,2413.0,0.29544371]
[1730776960636,4.14387,2413.2,2413.1,0.29544371]
[1730776961021,0.8239,2412.9,2412.6,2.32425633]
[1730776961257,4.9683,2412.9,2412.7,0.76826769]
[1730776961562,4.9683,2412.9,2412.6,1.73327103]
[1730776961761,4.96829,2412.9,2412.7,0.29548627]
[1730776961965,0.8239,2412.9,2412.6,1.73327103]
[1730776962174,0.8239,2412.9,2412.7,0.29549843]
[1730776962377,0.8239,2412.9,2412.6,1.73327103]
[1730776962520,4.96841,2412.9,2412.6,1.73327103]
[1730776962721,0.8239,2412.9,2412.7,0.29538584]
[1730776962920,0.8239,2412.9,2412.6,1.73327103]
[1730776963162,0.8239,2412.9,2412.7,0.29537018]
[1730776963319,0.8239,2412.9,2412.5,4.14503]
[1730776963516,0.8239,2412.9,2412.6,0.29530055]
[1730776963758,0.8239,2412.9,2412.7,0.29530055]
[1730776963950,0.8239,2412.9,2412.6,4.14483]
[1730776964156,4.14399,2413.2,2412.7,5.24997967]
[1730776964327,4.94787,2413.4,2412.9,4.14424]
[1730776964541,4.1437,2413.3,2413.0,0.29517268]
[1730776964862,4.1437,2413.3,2412.8,8.28886]
[1730776965023,4.1437,2413.3,2412.9,0.2951594]
[1730776965219,4.1437,2413.3,2413.0,0.2951594]
[1730776965421,4.1437,2413.3,2412.9,4.14436]
[1730776965728,4.1437,2413.3,2413.0,0.29519457]
[1730776966067,4.1437,2413.3,2412.9,4.14436]
[1730776966461,4.1437,2413.3,2413.0,0.29517745]
[1730776966673,4.1437,2413.3,2412.9,4.14436]
[1730776966870,8.28691,2413.5,2413.0,1.05773312]
[1730776967167,4.14361,2413.4,2413.1,0.29523312]
[1730776967372,4.14361,2413.4,2413.0,0.7625]
[1730776967533,4.14345,2413.5,2413.1,4.43932784]
[1730776967727,4.14345,2413.5,2413.0,0.7625]
[1730776968042,4.14354,2413.4,2413.1,0.29529798]
[1730776968244,4.14345,2413.5,2413.0,4.90667]
[1730776968444,4.14345,2413.5,2413.1,0.29536336]
[1730776968760,4.14345,2413.5,2413.0,4.90667]
[1730776968945,8.2869,2413.5,2413.1,0.29536346]
[1730776969147,8.2869,2413.5,2413.0,4.90667]
[1730776969375,4.14345,2413.5,2413.1,0.29541848]
[1730776969673,7.1432,2413.6,2413.2,0.29541848]
[1730776969872,4.14338,2413.5,2413.1,4.14389]
[1730776970378,4.14353,2413.4,2413.2,0.29547211]
[1730776970538,4.14353,2413.4,2413.0,4.90662]
[1730776970742,4.14353,2413.4,2413.1,0.29548803]
[1730776971070,0.10394486,2413.3,2413.2,0.29548803]
[1730776971278,4.24764486,2413.3,2413.2,0.29548803]
[1730776971490,4.14387,2413.2,2412.7,0.81]
[1730776971771,4.14434,2413.0,2412.8,0.76857452]
[1730776971930,4.14434,2413.0,2412.9,0.29560132]
[1730776972374,4.24835827,2413.0,2412.9,0.29560132]
[1730776972746,4.24835827,2413.0,2412.9,0.29570099]
[1730776973170,0.10401827,2413.0,2412.9,0.29570099]
[1730776974128,0.10401827,2413.0,2412.6,12.31489184]
[1730776974333,0.10401827,2413.0,2412.7,1.36038022]
[1730776974578,0.10401827,2413.0,2412.8,0.76890009]
[1730776974756,0.10401827,2413.0,2412.9,0.2957262]
[1730776975846,4.14405,2413.1,2412.9,0.2957262]
[1730776976172,4.14405,2413.1,2413.0,0.2957262]
[1730776976474,8.28799,2413.2,2413.0,0.2957262]
[1730776976768,8.28799,2413.2,2412.7,4.14464]
[1730776976976,4.14397,2413.2,2412.8,0.76890418]
[1730776977148,8.28795,2413.2,2412.9,0.29572811]
[1730776977343,4.14397,2413.2,2413.0,0.29572811]
[1730776977556,4.14397,2413.2,2412.7,4.22752635]
[1730776977877,4.14397,2413.2,2412.8,0.76887969]
[1730776978062,4.14406,2413.1,2412.9,0.29571869]
[1730776978235,4.14406,2413.1,2413.0,0.29571869]
[1730776981449,4.14388,2413.2,2413.0,0.29571869]
[1730776981788,4.14388,2413.2,2413.1,0.29571869]
[1730776982300,5.0532,2413.2,2413.1,0.29571869]
[1730776982589,5.0532,2413.2,2412.5,0.81]
[1730776982590,4.14456,2412.8,2412.6,0.59173248]
[1730776982751,4.14456,2412.8,2412.7,0.7693362]
[1730776984288,4.14456,2412.8,2412.7,0.76934439]
[1730776984450,4.14456,2412.8,2412.7,0.76933218]
[1730776985890,4.24857827,2412.8,2412.7,0.76933218]
[1730776987172,0.10401827,2412.8,2412.7,0.76933218]
[1730776987690,0.10356737,2412.8,2412.7,0.76933218]
[1730776987890,0.10356737,2412.8,2412.7,0.7693011]
[1730776988888,4.24812737,2412.8,2412.7,0.7693011]
[1730776989866,0.10356737,2412.8,2412.7,0.7693011]
[1730776990793,4.24812737,2412.8,2412.7,0.7693011]
[1730776992055,0.10356737,2412.8,2412.7,0.7693011]
[1730776995370,0.10356737,2412.8,2412.7,0.76878245]
[1730776995590,0.10356737,2412.8,2412.7,2.50283383]
[1730776995757,0.10356737,2412.8,2412.7,7.45427062]
[1730776996101,0.10356737,2412.8,2412.7,8.04561153]
[1730776996299,4.14399,2413.2,2412.7,8.04561153]
[1730776996525,0.10356737,2413.1,2412.8,0.76868924]
[1730776996794,0.10356737,2413.1,2412.9,0.76868924]
[1730776996997,0.10356737,2413.1,2413.0,0.29564544]
[1730776998058,0.10356737,2413.1,2413.0,0.76870617]
[1730776998666,4.90613,2413.3,2413.0,0.76870617]
[1730776998867,0.10365127,2413.2,2413.1,0.29564544]
[1730776999065,4.90613,2413.3,2412.9,1.73405138]
[1730776999376,4.24753127,2413.2,2413.0,0.7687952]
[1730776999588,4.24753127,2413.2,2413.1,0.29566336]
[1730777002485,5.4628954,2413.2,2413.1,0.29566336]
[1730777002683,9.2916954,2413.2,2413.1,0.29566336]
[1730777002888,4.14441,2412.9,2412.5,1.73405138]
[1730777003090,0.10347303,2412.8,2412.6,1.36071015]
[1730777003375,0.10347303,2412.8,2412.7,1.36076623]
[1730777003842,0.10347303,2412.8,2412.7,3.09481761]
[1730777003995,0.10347303,2412.8,2412.7,8.04074761]
[1730777004190,4.14409,2413.1,2412.7,8.04074761]
[1730777004430,4.14409,2413.1,2412.8,1.36076623]
[1730777004619,4.14409,2413.1,2412.9,0.76908619]
[1730777004823,4.14409,2413.1,2413.0,0.76908619]
[1730777005131,12.11679,2413.2,2413.0,0.76908619]
[1730777005322,7.97275,2413.2,2413.1,0.29579811]
[1730777005696,4.14395,2413.2,2413.1,0.29579811]
[1730777006640,4.14395,2413.2,2412.9,1.73405138]
[1730777006991,4.14395,2413.2,2413.0,0.4731909]
[1730777007196,8.28797,2413.2,2413.1,0.29573738]
[1730777007441,4.14395,2413.2,2413.1,0.29573738]
[1730777010296,4.14395,2413.2,2413.1,0.29575831]
[1730777016021,4.24754886,2413.2,2413.1,0.29575831]
[1730777017362,5.16659675,2413.2,2413.1,0.29575831]
[1730777017563,5.93559675,2413.2,2413.1,0.29575831]
[1730777017856,4.14444,2412.9,2412.7,1.73405138]
[1730777018061,8.28891,2412.9,2412.8,0.76897776]
[1730777018248,4.14444,2412.9,2412.8,0.76897776]
[1730777018446,4.24803886,2412.9,2412.8,0.76897776]
[1730777018635,4.24803886,2412.9,2412.8,1.36054795]
[1730777021177,4.24803886,2412.9,2412.8,0.47322135]
[1730777021392,8.39258886,2412.9,2412.8,1.36058413]
[1730777021681,9.23184775,2412.9,2412.8,0.76901496]
[1730777021975,10.01024775,2412.9,2412.8,0.76901496]
[1730777022749,5.02643886,2412.9,2412.8,0.76901496]
[1730777023270,4.24803886,2412.9,2412.8,0.76901496]
[1730777024978,4.24803886,2412.9,2412.8,1.36086498]
[1730777026280,5.90756986,2412.9,2412.8,1.36086498]
[1730777027081,5.90756986,2412.9,2412.8,0.76901496]
[1730777028773,4.14482,2412.7,2412.3,2.54685138]
[1730777028958,4.14482,2412.7,2412.4,1.06537719]
[1730777029293,0.10351496,2412.6,2412.5,1.36130279]
[1730777030282,4.24841496,2412.6,2412.5,1.36130279]
[1730777031242,0.10351496,2412.6,2412.5,1.36130279]
[1730777032148,0.10351496,2412.6,2412.3,2.54685138]
[1730777032382,0.10351496,2412.6,2412.4,1.36086128]
[1730777032686,0.10351496,2412.6,2412.5,1.36086128]
[1730777032981,4.24841496,2412.6,2412.5,0.76917161]
[1730777035849,4.24841496,2412.6,2412.5,0.76877366]
[1730777036793,4.24841496,2412.6,2412.5,0.76880849]
[1730777036992,4.24841496,2412.6,2412.5,0.29567791]
[1730777037166,5.16693146,2412.6,2412.5,0.29567791]
[1730777038280,4.24841496,2412.6,2412.5,0.29567791]
[1730777039392,5.90821196,2412.6,2412.1,2.50785138]
[1730777039600,5.90821196,2412.6,2412.2,0.88681456]
[1730777039801,5.90821196,2412.6,2412.3,0.76856325]
[1730777040099,5.90821196,2412.6,2412.4,0.76856325]
[1730777040292,5.90821196,2412.6,2412.5,0.29561341]
[1730777040590,6.74503426,2412.6,2412.5,0.29561341]
[1730777042013,6.74503426,2412.6,2412.5,0.29556782]
[1730777043619,7.50663426,2412.6,2412.5,0.29556782]
[1730777045628,10.50663426,2412.6,2412.5,0.29556782]
[1730777045825,10.50663426,2412.6,2412.1,0.7738]
[1730777045826,4.14524,2412.5,2412.1,2.50785138]
[1730777046023,4.14524,2412.5,2412.2,0.76859173]
[1730777046328,0.09901035,2412.4,2412.3,0.76859173]
[1730777046681,4.1451,2412.5,2412.3,0.76859173]
[1730777046929,0.09901035,2412.4,2412.1,6.65347138]
[1730777047226,0.09901035,2412.4,2412.2,0.76846532]
[1730777047388,0.09901035,2412.4,2412.3,0.76846532]
[1730777048996,9.949857,2412.6,2412.3,0.76846532]
[1730777049195,0.09901035,2412.5,2412.4,0.29555932]
[1730777049383,0.09901035,2412.5,2412.1,6.65347138]
[1730777049585,0.09901035,2412.5,2412.2,0.76859452]
[1730777049815,0.09901035,2412.5,2412.3,0.76859452]
[1730777050008,0.09901035,2412.5,2412.4,0.29559686]
[1730777051123,4.24408035,2412.5,2412.4,0.29559686]
[1730777051585,0.09901035,2412.5,2412.4,0.76864416]
[1730777051929,0.09901035,2412.5,2412.4,1.59454416]
[1730777052315,5.804309,2412.8,2412.4,1.59454416]
[1730777052489,0.09901035,2412.5,2412.4,4.97112]
[1730777052686,5.804309,2412.8,2412.4,2.1859495]
[1730777052886,0.09901035,2412.5,2412.4,0.8259]
[1730777053121,0.09901035,2412.5,2412.4,1.5946097]
[1730777053324,0.09901035,2412.5,2412.4,2.18595932]
[1730777053530,9.948979,2412.8,2412.4,0.8259]
[1730777053691,0.09901035,2412.5,2412.4,0.8259]
[1730777053905,9.948979,2412.8,2412.4,1.59454789]
[1730777054107,0.09901035,2412.7,2412.5,0.76864789]
[1730777054306,9.948979,2412.8,2412.6,0.29562954]
[1730777054307,5.804309,2412.8,2412.6,0.29562954]
[1730777054571,4.14432,2413.0,2412.7,1.09862954]
[1730777054572,8.2887,2413.0,2412.7,1.09862954]
[1730777054843,5.803849,2413.0,2412.8,0.29562954]
[1730777055014,5.803849,2413.0,2412.9,0.29562954]
[1730777055422,4.14406,2413.1,2412.9,0.29562954]
[1730777055622,4.14406,2413.1,2413.0,0.29562954]
[1730777056199,4.14397,2413.2,2413.0,0.29562954]
[1730777056402,4.14397,2413.2,2413.1,0.29562954]
[1730777058408,5.1386744,2413.2,2413.1,0.29562954]
[1730777059309,4.14397,2413.2,2413.1,0.29562954]
[1730777060341,4.14397,2413.2,2413.1,0.29530175]
[1730777060552,4.14397,2413.2,2412.8,0.7852]
[1730777060753,4.1441,2413.1,2412.9,0.76764847]
[1730777060907,4.1441,2413.1,2413.0,0.29524515]
[1730777061349,5.9022434,2413.1,2412.4,0.8095]
[1730777061505,5.9022434,2413.1,2412.5,0.76781217]
[1730777061506,4.14491,2412.6,2412.5,0.76781217]
[1730777063722,4.14491,2412.6,2412.5,0.29530811]
[1730777067275,5.804662,2412.6,2412.5,0.29530811]
[1730777068089,4.14491,2412.6,2412.5,0.29530811]